Cogmind - Beta 11.1 @@@ ROGUE MODE // 2022.12.15 @ 15:11:52 Player: L1l7 Result: Destroyed by G-50 Soldier with Heavy Laser Performance ------------- Evolutions (5) 2500 Regions Visited (12) 2400 Robots Destroyed (35) 175 Value Destroyed (777) 777 Prototype IDs (10) 200 Alien Tech Used (0) 0 Bonus (1440) 1440 TOTAL SCORE: 7492 Bonus ------- Follower Combat Kills 40 Entered Garrisons 400 Used RIF Installer 1000 Cogmind --------- Core Integrity 0/1000 Matter 212/300 Energy 100/100 System Corruption 11% Temperature Cool (9) Movement Flying (45) Location -5/Factory Parts ------- > --- POWER (2) -------- (None) > --- PROPULSION (7) --- Field Propulsion Drive > --- UTILITY (6) ------ Advanced Signal Interpreter Hacking Suite Improved Hacking Suite > --- WEAPON (2) ------- Improved Remote Datajack Kinetic Spear > --- INVENTORY (5) ---- Advanced Cooling System Advanced Signal Interpreter Improved Datajack Peak State ------------ > --- POWER ------------ Light Nuclear Core Light Nuclear Core > --- PROPULSION ------- VTOL Module VTOL Module VTOL Module Nuclear Pulse Thruster Field Propulsion Drive Nuclear Pulse Array > --- UTILITY ---------- Advanced Sensor Array Advanced Signal Interpreter Reaction Control System Cloaking Device Hacking Suite Improved Hacking Suite > --- WEAPON ----------- Improved Heavy Laser Improved Remote Datajack > --- INVENTORY -------- Advanced Cooling System Advanced Signal Interpreter Smartbomb Launcher Improved Datajack [Rating: 75] Favorites ----------- Power Light Nuclear Core Engine Light Ion Engine Power Core Light Nuclear Core Reactor Cold Fusion Reactor Propulsion VTOL Module Leg Aluminum Leg Wheel Compact Wheel Hover Unit Gyrokinetic Inverter Flight Unit VTOL Module Utility Small Storage Unit Device Improved Sensor Array Storage Small Storage Unit Processor Visual Processing Unit Hackware Hacking Suite Weapon Assault Rifle Energy Gun Medium Laser Energy Cannon Disruptor Cannon Ballistic Gun Assault Rifle Ballistic Cannon Mini Assault Cannon Launcher Grenade Launcher Special Weapon Improved Remote Datajack Slashing Weapon Makeshift Sword Piercing Weapon Kinetic Spear Special Melee Weapon Datajack Build | -11 -10 -9 -8 -7 -6 -6 -6 -6 -6 -5 -5 -5 ------- Run | Scr Mat Mat Mat Fac Fac Gar Fac Low Low Fac Gar Fac Slots Evolved 10 | . . 2 2 2 2 . . . . 2 . . Power 1 | . . . . . 1 . . . . . . . Propulsion 5 | . . 2 . 1 1 . . . . 1 . . Utility 4 | . . . 2 1 . . . . . 1 . . Weapon . | . . . . . . . . . . . . . Parts Attached 109 | 9 9 9 3 9 4 7 10 1 . 10 2 36 Power 17 | 1 2 . 1 . 2 1 1 . . 3 1 5 Engine 4 | 1 . . . . 1 1 . . . 1 . . Core 12 | . 2 . 1 . 1 . 1 . . 2 1 4 Reactor 1 | . . . . . . . . . . . . 1 Propulsion 40 | 3 4 6 1 2 2 4 4 1 . 2 . 11 Treads . | . . . . . . . . . . . . . Leg 6 | 2 4 . . . . . . . . . . . Wheel 1 | 1 . . . . . . . . . . . . Hover 4 | . . . . . . . . . . . . 4 Flight 29 | . . 6 1 2 2 4 4 1 . 2 . 7 Utility 25 | 2 2 1 1 4 . . 3 . . 2 1 9 Device 12 | 1 1 . 1 2 . . . . . 1 1 5 Storage 3 | 1 . 1 . . . . 1 . . . . . Processor 4 | . 1 . . 2 . . . . . . . 1 Hackware 6 | . . . . . . . 2 . . 1 . 3 Protection . | . . . . . . . . . . . . . Artifact . | . . . . . . . . . . . . . Weapon 27 | 3 1 2 . 3 . 2 2 . . 3 . 11 Energy Gun 4 | 2 . . . . . 1 . . . . . 1 Energy Cannon 2 | . . . . . . . . . . . . 2 Ballistic Gun 6 | 1 1 . . 2 . 1 1 . . . . . Ballistic Cannon 1 | . . . . 1 . . . . . . . . Launcher 3 | . . 2 . . . . . . . 1 . . Special Weapon 4 | . . . . . . . . . . 1 . 3 Impact Weapon . | . . . . . . . . . . . . . Slashing Weapon 3 | . . . . . . . . . . 1 . 2 Piercing Weapon 1 | . . . . . . . . . . . . 1 Special Melee Weapon 3 | . . . . . . . 1 . . . . 2 Unidentified Prototypes 6 | . . . . 1 . 1 1 . . . . 3 Parts Lost 49 | . 2 1 1 . 1 14 3 . . 8 5 14 Power 9 | . 1 . . . . 2 . . . 2 1 3 Propulsion 23 | . . 1 1 . 1 8 . . . 5 2 5 Utility 12 | . 1 . . . . 2 2 . . 1 2 4 Weapon 5 | . . . . . . 2 1 . . . . 2 Highest Loss Streak 12 | . 1 1 1 . 1 12 3 . . 8 9 5 To Critical Strikes . | . . . . . . . . . . . . . Average Slot Usage (%) 78 | . 95 87 79 86 92 79 54 68 73 72 29 74 Engine 1 | . 5 . . . 1 . . . . 3 . . Core 7 | . 7 3 6 7 11 7 3 6 6 5 1 7 Leg 6 | . 27 . . . . . . . . . . . Hover 1 | . . . . . . . . . . . . 4 Flight 22 | . . 39 36 37 39 35 24 35 40 31 3 22 Device 7 | . 8 . 7 8 13 7 . . . . 4 9 Storage 6 | . 14 11 9 7 6 5 5 6 6 5 3 . Processor 6 | . 1 11 9 12 13 13 10 6 6 5 5 5 Hackware 4 | . . . . . . . 1 6 6 10 8 12 Energy Gun 4 | . 14 6 . . . . . . . . . 3 Ballistic Gun 5 | . 14 6 . 6 6 8 4 6 6 2 . . Naked Turns . | . . . . . . . . . . . . . Heaviest Build 31 | 13 15 14 14 20 26 27 19 18 18 31 10 23 Greatest Support 44 | 20 20 16 16 22 29 29 26 32 32 32 13 44 Greatest Overweight (x) 1 | . 1 . . . . . . . . . . 1 Average Overweight (x) . | . . . . . . . . . . . . . Largest Inventory Capacity 8 | 8 8 8 8 8 8 8 8 8 8 8 8 5 Average Capacity 7 | 7 8 8 8 8 8 7 7 8 8 8 6 5 Most Carried 8 | 3 8 8 8 8 8 8 7 7 7 8 6 5 Average Carried 5 | . 6 6 7 7 7 7 4 5 7 6 5 3 Final Capacity 8 | 8 8 8 8 8 8 5 8 8 8 8 5 5 Final Carried 8 | . 8 8 8 7 8 4 5 7 7 6 5 3 Class Distribution -------------------- 39% | Mutant 26% | Sprinter 17% | Scavenger-Sprinter 12% | Scout Dominant Class ---------------- Mutant | -10/Materials Sprinter | -9/Materials Sprinter | -8/Materials Sprinter | -7/Factory Scout | -6/Factory Scout | -6/Garrison Sprinter | -6/Factory Sprinter | -6/Lower Caves Sprinter | -6/Lower Caves Sprinter | -5/Factory Mutant | -5/Garrison Scavenger-Sprinter | -5/Factory Resources | -11 -10 -9 -8 -7 -6 -6 -6 -6 -6 -5 -5 -5 ----------- Run | Scr Mat Mat Mat Fac Fac Gar Fac Low Low Fac Gar Fac Matter Collected 1516 | 323 229 . . 174 15 . 182 56 24 58 . 455 Remotely . | . . . . . . . . . . . . . Salvage Created 1173 | 182 561 . . 78 30 . . . . 58 . 264 Parts 77 | 12 34 . . 13 . . . . . 2 . 16 Haulers Intercepted 1 | . 1 . . . . . . . . . . . Recyclers Shooed 1 | . . . . . . . . . . . . 1 Parts Field Recycled . | . . . . . . . . . . . . . Retrieved Matter . | . . . . . . . . . . . . . Parts Self-Destructed . | . . . . . . . . . . . . . Prevented . | . . . . . . . . . . . . . Kills | -11 -10 -9 -8 -7 -6 -6 -6 -6 -6 -5 -5 -5 ------- Run | Scr Mat Mat Mat Fac Fac Gar Fac Low Low Fac Gar Fac Combat Hostiles Destroyed 15 | . 10 . . . . . . . . 2 . 3 Melee 2 | . . . . . . . . . . 2 . . Guns 13 | . 10 . . . . . . . . . . 3 Classes Destroyed 10 | 2 4 . . 2 . . . . . 1 . 1 Worker 4 | . 2 . . . 2 . . . . . . . Builder 1 | . . . . 1 . . . . . . . . Tunneler 4 | 4 . . . . . . . . . . . . Hauler 1 | . 1 . . . . . . . . . . . Recycler 2 | 1 . . . . . . . . . . . 1 Operator 1 | . . . . 1 . . . . . . . . Watcher 7 | . 3 . . 2 . . . . . . . 2 Swarmer 3 | . . . . . . . . . . . . 3 Cutter 2 | . . . . . . . . . . 2 . . Grunt 10 | . 10 . . . . . . . . . . . Best Kill Streak 3 | 2 3 . . 3 1 . . . . 2 . 3 Combat Bots Only 3 | . 3 . . . . . . . . 2 . 3 Max Kills in Single Turn 1 | 1 1 . . 1 1 . . . . 1 . 1 Gunslinging . | . . . . . . . . . . . . . Exploded . | . . . . . . . . . . . . . Melee 1 | . . . . . . . . . . 1 . . Uniques/NPCs Destroyed . | . . . . . . . . . . . . . Combat | -11 -10 -9 -8 -7 -6 -6 -6 -6 -6 -5 -5 -5 -------- Run | Scr Mat Mat Mat Fac Fac Gar Fac Low Low Fac Gar Fac Damage Taken 4775 | . 655 157 106 . 133 1068 150 101 . 568 457 1380 Core 1663 | . 110 33 55 . 32 368 42 10 . 203 334 476 Absorbed by Shields 99 | . . . . . . 94 . . . . 5 . Core Remaining (%) 80 | 100 56 91 90 100 . . . . 46 . . . Volleys Fired 117 | 11 55 . 1 8 8 3 2 . . 2 . 27 Largest 2 | 2 2 . 1 2 1 2 1 . . 1 . 1 Hottest 81 | 70 70 . 30 56 28 56 25 . . 7 . 81 Shots Fired 191 | 22 110 . 1 14 8 5 2 . . 2 . 27 Gun 176 | 22 110 . . 12 8 5 2 . . . . 17 Cannon 2 | . . . . . . . . . . . . 2 Launcher 4 | . . . 1 2 . . . . . 1 . . Special 9 | . . . . . . . . . . 1 . 8 Kinetic 93 | 11 55 . . 12 8 5 2 . . . . . Thermal 83 | 11 55 . . . . . . . . . . 17 Explosive 4 | . . . 1 2 . . . . . 1 . . Electromagnetic 2 | . . . . . . . . . . . . 2 Robot Hit Streak 13 | 3 13 . 4 5 3 . 1 . . 2 . 5 Robot Miss Streak 11 | 2 3 . . 11 7 . 1 . . . . 2 Penetration Max . | . . . . . . . . . . . . . Secondary Targets 3 | . 3 . . . . . . . . . . . Max Gunslinging Chain 1 | . 1 . . . . . . . . . . . Shots Hit Robots 145 | 12 76 . 1 11 8 . 6 . . 8 . 23 Core Hits 79 | 7 32 . 1 14 11 . . . . 7 . 7 Critical Kills . | . . . . . . . . . . . . . Critical Parts Destroyed 1 | . 1 . . . . . . . . . . . Critical Strikes 14 | 1 9 . . . . . . . . 2 . 2 Burn 10 | 1 8 . . . . . . . . . . 1 Destroy 1 | . 1 . . . . . . . . . . . Sever 3 | . . . . . . . . . . 2 . 1 Melee Attacks 25 | . . . . . . . 4 . . 15 . 6 Impact . | . . . . . . . . . . . . . Slashing 19 | . . . . . . . . . . 15 . 4 Piercing . | . . . . . . . . . . . . . Sneak Attacks 4 | . . . . . . . 2 . . . . 2 Combat Hostiles . | . . . . . . . . . . . . . Follow-up Attacks . | . . . . . . . . . . . . . Damage Inflicted 2629 | 184 1006 . 39 217 322 . 26 . . 416 . 419 Guns 1733 | 152 1001 . . 106 119 . 26 . . . . 329 Cannons 33 | . . . . . . . . . . 19 . 14 Explosions 538 | . . . 39 111 203 . . . . 185 . . Melee 288 | . . . . . . . . . . 212 . 76 Ramming 37 | 32 5 . . . . . . . . . . . Kinetic 765 | 51 463 . . 106 119 . 26 . . . . . Thermal 968 | 101 538 . . . . . . . . . . 329 Explosive 538 | . . . 39 111 203 . . . . 185 . . Electromagnetic 14 | . . . . . . . . . . . . 14 Impact 19 | . . . . . . . . . . 19 . . Slashing 288 | . . . . . . . . . . 212 . 76 Piercing . | . . . . . . . . . . . . . Highest Corruption 11 | . . . . . . . 10 10 10 3 10 11 Average Corruption 9 | . . . . . . . 10 10 10 3 6 10 Corruption Purged . | . . . . . . . . . . . . . Corruption Blocked . | . . . . . . . . . . . . . Effects 54 | . . . . . . . 5 7 3 . 3 36 Message Errors 10 | . . . . . . . 1 1 1 . 2 5 Matter Fused 19 | . . . . . . . 2 3 . . . 14 Heat Flow Errors 6 | . . . . . . . . 2 . . . 4 Energy Discharges 3 | . . . . . . . . . 1 . . 2 Parts Rejected 1 | . . . . . . . . . . . . 1 Data Loss (minor) 5 | . . . . . . . 1 1 1 . . 2 Data Loss (major) 3 | . . . . . . . 1 . . . 1 1 Misfires 1 | . . . . . . . . . . . . 1 Misdirections 5 | . . . . . . . . . . . . 5 Weapon Failures 1 | . . . . . . . . . . . . 1 Overload Shots . | . . . . . . . . . . . . . Overflow Damage 44 | . . . . . 42 . . . . 2 . . Projectiles . | . . . . . . . . . . . . . Explosions 44 | . . . . . 42 . . . . 2 . . Melee . | . . . . . . . . . . . . . Knockbacks . | . . . . . . . . . . . . . Impact . | . . . . . . . . . . . . . Kinetic . | . . . . . . . . . . . . . Secondary . | . . . . . . . . . . . . . Self-Inflicted Damage 112 | . . . . . 95 . . . . 17 . . Shots 2 | . . . . . 1 . . . . 1 . . Rammed . | . . . . . . . . . . . . . Targets Rammed 9 | 7 2 . . . . . . . . . . . Kicked 9 | 7 2 . . . . . . . . . . . Crushed . | . . . . . . . . . . . . . Highest Temperature 296 | 27 174 17 10 235 270 254 7 216 222 78 . 296 Average Temperature 77 | 11 64 9 5 45 104 119 3 116 95 32 . 67 Received Heat Transfer 1212 | . 369 36 54 . 18 477 27 27 . 9 156 39 Effects 3 | . . . . . . . . . . . . 3 Energy Bleed 3 | . . . . . . . . . . . . 3 Siege Activations . | . . . . . . . . . . . . . Robots Corrupted . | . . . . . . . . . . . . . Combat Hostiles . | . . . . . . . . . . . . . Parts Fried . | . . . . . . . . . . . . . Impact Corruptions . | . . . . . . . . . . . . . Robots Melted . | . . . . . . . . . . . . . Combat Hostiles . | . . . . . . . . . . . . . Parts Melted 2 | . 1 . . . . . . . . . . 1 Heat Transferred 3108 | 370 2183 . . . . . . . . . . 555 Parts Sabotaged . | . . . . . . . . . . . . . Parts Stolen . | . . . . . . . . . . . . . Parts Stripped . | . . . . . . . . . . . . . Power Chain Reactions . | . . . . . . . . . . . . . Missiles Intercepted . | . . . . . . . . . . . . . Alert | -11 -10 -9 -8 -7 -6 -6 -6 -6 -6 -5 -5 -5 ------- Run | Scr Mat Mat Mat Fac Fac Gar Fac Low Low Fac Gar Fac Peak Influence 273 | 25 247 161 99 118 158 210 273 . . 154 87 245 Initial 124 | . 16 66 23 44 57 120 75 . . 124 77 45 Average 105 | 13 127 87 33 75 113 135 182 . . 133 76 96 Maximum Alert Level 1 | . 1 . . . . 1 1 . . . . 1 Low Security (%) 90 | 100 83 100 100 100 100 98 58 . . 100 100 92 Level 1 9 | . 16 . . . . 1 41 . . . . 7 Level 2 . | . . . . . . . . . . . . . Level 3 . | . . . . . . . . . . . . . Level 4 . | . . . . . . . . . . . . . Level 5 . | . . . . . . . . . . . . . High Security . | . . . . . . . . . . . . . Max Security . | . . . . . . . . . . . . . Squads Dispatched 22 | . 2 1 3 1 3 . 5 . . 4 . 3 Investigation 4 | . . . 2 . . . 1 . . . . 1 Extermination 2 | . . . . . 1 . . . . . . 1 Reinforcement 13 | . 2 1 1 1 1 . 2 . . 4 . 1 Assault . | . . . . . . . . . . . . . Garrison 3 | . . . . . 1 . 2 . . . . . Intercept . | . . . . . . . . . . . . . Searches Triggered . | . . . . . . . . . . . . . Construction Impeded 3 | . . . . 1 1 . . . . 1 . . Haulers Reinforced . | . . . . . . . . . . . . . Active Scanning Responses . | . . . . . . . . . . . . . Cargo Convoy Interrupts . | . . . . . . . . . . . . . Stealth | -11 -10 -9 -8 -7 -6 -6 -6 -6 -6 -5 -5 -5 --------- Run | Scr Mat Mat Mat Fac Fac Gar Fac Low Low Fac Gar Fac Distress Signals 4 | . 1 1 . . 1 . . . . . . 1 Communications Jammed . | . . . . . . . . . . . . . Distress Signals . | . . . . . . . . . . . . . Times Spotted 152 | . 16 15 15 3 5 29 11 5 . 12 12 29 Peak Tracking Total 23 | . 2 10 12 1 4 23 5 5 . 8 13 7 Tactical Retreats 17 | . . 2 1 . . 3 1 3 . . 2 5 Traps | -11 -10 -9 -8 -7 -6 -6 -6 -6 -6 -5 -5 -5 ------- Run | Scr Mat Mat Mat Fac Fac Gar Fac Low Low Fac Gar Fac Traps Triggered 12 | . . . 1 . . 3 1 . . . 2 5 Indirectly . | . . . . . . . . . . . . . Trap Hack Attempts . | . . . . . . . . . . . . . Triggered . | . . . . . . . . . . . . . Disarmed . | . . . . . . . . . . . . . Reprogrammed 5 | . . . . . 5 . . . . . . . Reused . | . . . . . . . . . . . . . Traps Extracted . | . . . . . . . . . . . . . Installed . | . . . . . . . . . . . . . Triggered 1 | . . . . . . . . 1 . . . . Machines | -11 -10 -9 -8 -7 -6 -6 -6 -6 -6 -5 -5 -5 ---------- Run | Scr Mat Mat Mat Fac Fac Gar Fac Low Low Fac Gar Fac Machines Disabled 2 | . . . 1 . 1 . . . . . . . Max in Single Turn 1 | . . . 1 . 1 . . . . . . . Garrison Access 1 | . . . . . . . . . . . . 1 Garrison Relay 1 | . . . . . . 1 . . . . . . Machines Sabotaged . | . . . . . . . . . . . . . Garrisons Compromised . | . . . . . . . . . . . . . Overloaded Fab Kills . | . . . . . . . . . . . . . Hacking | -11 -10 -9 -8 -7 -6 -6 -6 -6 -6 -5 -5 -5 --------- Run | Scr Mat Mat Mat Fac Fac Gar Fac Low Low Fac Gar Fac Machines Accessed 33 | . 3 3 2 3 6 . 1 1 . 1 . 13 Terminals 26 | . 3 3 2 3 4 . 1 1 . . . 9 Fabricators 4 | . . . . . 1 . . . . . . 3 Repair Stations . | . . . . . . . . . . . . . Recycling Units . | . . . . . . . . . . . . . Scanalyzers . | . . . . . . . . . . . . . Garrison Access 3 | . . . . . 1 . . . . 1 . 1 Total Hacks 73 | . 7 5 6 6 16 . 2 1 . 2 . 28 Successful 38 | . 5 3 4 2 7 . . 1 . 2 . 14 Failed 35 | . 2 2 2 4 9 . 2 . . . . 14 Catastrophic 7 | . . . . 2 1 . 2 . . . . 2 Database Lockouts . | . . . . . . . . . . . . . Manual . | . . . . . . . . . . . . . Terminals 61 | . 7 5 6 6 13 . 2 1 . . . 21 Fabricators 6 | . . . . . 1 . . . . . . 5 Repair Stations . | . . . . . . . . . . . . . Recycling Units . | . . . . . . . . . . . . . Scanalyzers . | . . . . . . . . . . . . . Garrison Access 6 | . . . . . 2 . . . . 2 . 2 Terminal Hacks 32 | . 5 3 4 2 6 . . 1 . . . 11 Record 4 | . . . 1 . 2 . . 1 . . . . Robot Schematic 1 | . . . . . . . . . . . . 1 Robot Analysis 1 | . . . . . . . . . . . . 1 Prototype ID Bank 2 | . 1 . . 1 . . . . . . . . Level Access Points 2 | . . 1 . . . . . . . . . 1 Branch Access Points 2 | . . 1 . . . . . . . . . 1 Emergency Access Points 2 | . . . . . . . . . . . . 2 Terminal Index 2 | . . . . . 1 . . . . . . 1 Alert Level 4 | . 1 . 1 1 1 . . . . . . . Unreport Threat 2 | . . 1 1 . . . . . . . . . Locate Traps 1 | . 1 . . . . . . . . . . . Reprogram Traps 2 | . . . . . 2 . . . . . . . Patrol Status 1 | . . . 1 . . . . . . . . . Transport Status 1 | . 1 . . . . . . . . . . . Recall Investigation 1 | . . . . . . . . . . . . 1 Recall Reinforcements 1 | . . . . . . . . . . . . 1 Hauler Manifests 1 | . 1 . . . . . . . . . . . Zone Layout 2 | . . . . . . . . . . . . 2 Fabricator Hacks 1 | . . . . . . . . . . . . 1 Network Status 1 | . . . . . . . . . . . . 1 Repair Station Hacks . | . . . . . . . . . . . . . Recycling Unit Hacks . | . . . . . . . . . . . . . Scanalyzer . | . . . . . . . . . . . . . Garrison Access Hacks 5 | . . . . . 1 . . . . 2 . 2 Unlock Access 2 | . . . . . 1 . . . . 1 . . Seal Access 1 | . . . . . . . . . . . . 1 Coupler Status 2 | . . . . . . . . . . 1 . 1 Unauthorized Hacks . | . . . . . . . . . . . . . Terminals . | . . . . . . . . . . . . . Fabricators . | . . . . . . . . . . . . . Repair Stations . | . . . . . . . . . . . . . Recycling Units . | . . . . . . . . . . . . . Scanalyzers . | . . . . . . . . . . . . . Garrison Access . | . . . . . . . . . . . . . Data Cores Recovered 1 | . . . . 1 . . . . . . . . Used 1 | . . . . 1 . . . . . . . . Hacking Detections 27 | . 2 1 2 3 6 . 1 . . 1 . 11 Full Trace Events 3 | . . . 1 . . . 1 . . . . 1 Feedback Events . | . . . . . . . . . . . . . Feedback Blocked . | . . . . . . . . . . . . . Robot Schematics Acquired 1 | . . . . . . . . . . . . 1 Robots Built . | . . . . . . . . . . . . . Authchips . | . . . . . . . . . . . . . Time . | . . . . . . . . . . . . . Total Robot Build Rating . | . . . . . . . . . . . . . Part Schematics Acquired . | . . . . . . . . . . . . . Parts Built . | . . . . . . . . . . . . . Authchips . | . . . . . . . . . . . . . Time . | . . . . . . . . . . . . . Total Part Build Rating . | . . . . . . . . . . . . . Parts Repaired . | . . . . . . . . . . . . . Time . | . . . . . . . . . . . . . Parts Recycled . | . . . . . . . . . . . . . Recycled Matter . | . . . . . . . . . . . . . Retrieved Matter . | . . . . . . . . . . . . . Retrieved Components . | . . . . . . . . . . . . . Parts Scanalyzed . | . . . . . . . . . . . . . Part Schematics Acquired . | . . . . . . . . . . . . . Parts Damaged . | . . . . . . . . . . . . . Bothacking | -11 -10 -9 -8 -7 -6 -6 -6 -6 -6 -5 -5 -5 ------------ Run | Scr Mat Mat Mat Fac Fac Gar Fac Low Low Fac Gar Fac Used RIF Installer 2 | . . . . . . 1 . . . . 1 . Command Fork 1 | . . . . . . . . . . . 1 . Robots Hacked 8 | . . . . . . . 2 . . 1 . 5 Non-combat 5 | . . . . . . . 1 . . . . 4 Combat 3 | . . . . . . . 1 . . 1 . 1 Robot Hacks Applied 10 | . . . . . . . 3 . . 1 . 6 parse_system 4 | . . . . . . . 2 . . 1 . 1 no_distress 1 | . . . . . . . . . . . . 1 find_fabricator 1 | . . . . . . . . . . . . 1 find_station 1 | . . . . . . . . . . . . 1 overload_power 1 | . . . . . . . . . . . . 1 overwrite_iff 1 | . . . . . . . . . . . . 1 formatsys_high 1 | . . . . . . . 1 . . . . . Relay Couplers Released 5 | . . . . . . 5 . . . . . . Machine Destruction 5 | . . . . . . 5 . . . . . . Attached 3 | . . . . . . . 1 . . 1 . 1 Fabnet Peak Effective % . | . . . . . . . . . . . . . Robots Rewired 1 | . . . . . 1 . . . . . . . Allies Hacked . | . . . . . . . . . . . . . Hacks Repelled . | . . . . . . . . . . . . . Allies | -11 -10 -9 -8 -7 -6 -6 -6 -6 -6 -5 -5 -5 -------- Run | Scr Mat Mat Mat Fac Fac Gar Fac Low Low Fac Gar Fac Total Allies 4 | . . . . . 1 . 1 . . . . 2 Largest Group 2 | . . . . . 1 . 1 . . . . 2 Highest-Rated Group 77 | . . . . . 40 . 32 . . . . 77 Highest-Rated Ally 41 | . . . . . 40 . 32 . . . . 41 Total Orders 2 | . . . . . 1 . 1 . . . . . STAY 1 | . . . . . . . 1 . . . . . ROAM 1 | . . . . . 1 . . . . . . . Ally Attacks 7 | . . . . . . . 7 . . . . . Total Damage 245 | . . . . . . . 245 . . . . . Kills 2 | . . . . . . . 2 . . . . . Allies Corrupted . | . . . . . . . . . . . . . Allies Melted . | . . . . . . . . . . . . . Intel | -11 -10 -9 -8 -7 -6 -6 -6 -6 -6 -5 -5 -5 ------- Run | Scr Mat Mat Mat Fac Fac Gar Fac Low Low Fac Gar Fac Robot Analysis Total 1 | . . . . . . . . . . . . 1 Derelict Logs Recovered 2 | . . . . . . . . 2 . . . . Drone Launches . | . . . . . . . . . . . . . Drone Recoveries . | . . . . . . . . . . . . . Exploration | -11 -10 -9 -8 -7 -6 -6 -6 -6 -6 -5 -5 -5 ------------- Run | Scr Mat Mat Mat Fac Fac Gar Fac Low Low Fac Gar Fac Turns Passed 3487 | 272 719 95 62 179 338 153 274 196 61 117 107 914 Spaces Moved 5296 | 182 395 242 184 414 384 407 455 389 230 148 184 1682 Core 94 | 9 . . . . . . . . . . 67 18 Treads . | . . . . . . . . . . . . . Legs 568 | 173 395 . . . . . . . . . . . Wheels . | . . . . . . . . . . . . . Hover 170 | . . . . . . . . . . . . 170 Flight 4464 | . . 242 184 414 384 407 455 389 230 148 117 1494 Fastest Speed 21 | 50 120 26 26 23 21 22 25 22 22 21 25 22 Average Speed 37 | 116 123 27 26 23 21 24 28 23 22 22 39 30 Slowest Speed 190 | 120 190 29 29 26 24 35 35 25 22 29 50 115 Overloaded Moves 52 | . . . . . . . . . . 30 22 . Propulsion Burnouts 1 | . . . . . . . . . . . 1 . Robots Hopped 47 | . . 5 8 . 4 9 2 . . 3 1 15 Cave-ins Triggered . | . . . . . . . . . . . . . Exploration Rate (%) 32 | 10 60 34 27 9 11 71 12 72 22 4 42 45 Regions Visited 12 Branch Regions 2 Pre-discovered Areas . | . . . . . . . . . . . . . Known Exits Taken 5 | . . 1 . 1 1 . . 1 . 1 . . Unknown Exits Taken 5 | 1 1 . 1 . . . 1 . 1 . . . Scrap Searched 5 | . . . . . . . . 4 1 . . . Spaces Dug . | . . . . . . . . . . . . . Terrain Destroyed 32 | . . . 8 . 18 . . . . 6 . . Melee . | . . . . . . . . . . . . . Projectile . | . . . . . . . . . . . . . AOE 32 | . . . 8 . 18 . . . . 6 . . Terrain Rammed . | . . . . . . . . . . . . . Walls Destroyed . | . . . . . . . . . . . . . Machines Disabled . | . . . . . . . . . . . . . Actions | -11 -10 -9 -8 -7 -6 -6 -6 -6 -6 -5 -5 -5 --------- Run | Scr Mat Mat Mat Fac Fac Gar Fac Low Low Fac Gar Fac Total 6570 | 219 525 269 188 485 627 445 593 492 239 214 217 2057 Wait 782 | . 29 4 1 32 221 . 114 100 10 34 . 237 Move 5196 | 181 394 232 169 413 375 390 450 388 229 141 180 1654 Hop 39 | . . 4 6 . 4 6 2 . . 3 1 13 Pick Up 131 | 9 23 11 5 13 5 3 11 3 . 7 1 40 Fast Attach . | . . . . . . . . . . . . . Attach 108 | 9 8 9 3 9 4 7 10 1 . 10 2 36 Detach 6 | . . . . . 1 . . . . 2 . 3 Swap 1 | . 1 . . . . . . . . . . . Drop 68 | 2 13 9 3 10 2 4 . . . . 1 24 Fire 117 | 11 55 . 1 8 8 3 2 . . 2 . 27 Melee 25 | . . . . . . . 4 . . 15 . 6 Ram . | . . . . . . . . . . . . . Kick 9 | 7 2 . . . . . . . . . . . Crush . | . . . . . . . . . . . . . Escape Stasis 81 | . . . . . . 32 . . . . 32 17 Rewire 7 | . . . . . 7 . . . . . . . Trap . | . . . . . . . . . . . . . Miscellaneous . | . . . . . . . . . . . . . Route ------- -11/Scrapyard -10/Materials (discovered 2 exits: *Mat / [*Min]) -9/Materials (discovered 5 exits: *Mat x3 / *Min x2) -8/Materials -7/Factory -6/Factory -6/Garrison (discovered 3 exits: *Fac x3) -6/Factory -6/Lower Caves -6/Lower Caves -5/Factory -5/Garrison (discovered 2 exits: *Fac x2) -5/Factory (discovered 8 exits: Fac x4 / *Upp x2 / Ext x2) History --------- Turn | Location | Event 4 | -11/Scrapyard | Discovered new exit (range 15) 273 | -11/Scrapyard | Entered Materials 312 | -10/Materials | Build established: Mutant 337 | -10/Materials | Discovered new exit (range 12) 970 | -10/Materials | Discovered new exit (range 18) 992 | -10/Materials | Entered another Materials area 992 | -9/Materials | Evolved 2 slots: Propulsion x2 1039 | -9/Materials | Discovered new exit (range 12) 1039 | -9/Materials | Identified exit to Mines 1058 | -9/Materials | Identified exit to Materials 1087 | -9/Materials | Entered another Materials area 1087 | -8/Materials | Evolved 2 slots: Utility x2 1147 | -8/Materials | Discovered new exit (range 5) 1149 | -8/Materials | Entered Factory 1149 | -7/Factory | Evolved 2 slots: Propulsion x1, Utility x1 1305 | -7/Factory | Build established: Sprinter 1321 | -7/Factory | Discovered new exit (range 4) 1328 | -7/Factory | Identified exit to Factory 1328 | -7/Factory | Entered another Factory area 1328 | -6/Factory | Evolved 2 slots: Power x1, Propulsion x1 1401 | -6/Factory | Garrison activated, responded to threat 1612 | -6/Factory | Build established: Scout 1666 | -6/Factory | Identified exit to Garrison 1666 | -6/Factory | Entered Garrison 1674 | -6/Garrison | Triggered checkpoint 1702 | -6/Garrison | Triggered checkpoint 1708 | -6/Garrison | Garrison Relay disabled 1718 | -6/Garrison | Triggered checkpoint 1746 | -6/Garrison | Discovered new exit (range 11) 1748 | -6/Garrison | Identified exit to Factory 1761 | -6/Garrison | Spotted B-75 Beast 1778 | -6/Garrison | Discovered exit to Factory (range 9) 1813 | -6/Garrison | Discovered exit to Factory (range 8) 1817 | -6/Garrison | Installed Relay Interface Framework 1819 | -6/Garrison | Entered Factory 1829 | -6/Factory | Lost 12 parts (1p8n1u2w) 1851 | -6/Factory | Core integrity fell below 50% 1979 | -6/Factory | Garrison activated, responded to threat 1995 | -6/Factory | System corruption reached 10% 2025 | -6/Factory | Lost 3 parts (2u1w) 2090 | -6/Factory | Discovered new exit (range 7) 2093 | -6/Factory | Entered Lower Caves 2132 | -6/Lower Caves | Build established: Sprinter 2188 | -6/Lower Caves | Attracted the attention of an 0b10 checkpoint 2245 | -6/Lower Caves | Encountered a Warlord checkpoint 2251 | -6/Lower Caves | Learned Factory terminal intel 2265 | -6/Lower Caves | Identified exit to Lower Caves 2289 | -6/Lower Caves | Entered another Lower Caves area 2349 | -6/Lower Caves | Discovered new exit (range 5) 2350 | -6/Lower Caves | Entered Factory 2350 | -5/Factory | Evolved 2 slots: Propulsion x1, Utility x1 2351 | -5/Factory | Loaded intel: 28 terminal locations 2467 | -5/Factory | Identified exit to Garrison 2467 | -5/Factory | Entered Garrison 2504 | -5/Garrison | Lost 9 parts (2p6n1u) 2504 | -5/Garrison | Spotted B-75 Beast 2507 | -5/Garrison | Triggered checkpoint 2516 | -5/Garrison | Discovered new exit (range 10) 2529 | -5/Garrison | System corruption reached 10% 2534 | -5/Garrison | Core integrity fell below 50% 2562 | -5/Garrison | Lost 4 parts (1p1n2u) 2562 | -5/Garrison | Discovered new exit (range 13) 2572 | -5/Garrison | Expanded RIF knowledge: Command Fork 2574 | -5/Garrison | Entered Factory 2714 | -5/Factory | Core integrity fell below 20% 2723 | -5/Factory | Build established: Mutant 2755 | -5/Factory | Lost 4 parts (1p1u2w) 3055 | -5/Factory | Build established: Scavenger-Sprinter 3300 | -5/Factory | Discovered new exit (range 9) 3302 | -5/Factory | Identified exit to Upper Caves 3399 | -5/Factory | Identified exit to Factory 3424 | -5/Factory | Lost 5 parts (2p2n1u) 3463 | -5/Factory | Spotted B-75 Beast 3467 | -5/Factory | Identified exit to Extension 3488 | -5/Factory | Destroyed by G-50 Soldier with Heavy Laser Last Messages --------------- Connecting with Terminal... >>Access(Branch) Found 4 branch access points: (69,22) Upper Caves (187,78) Upper Caves (52,93) Extension (174,77) Extension Map updated. Terminal disabled. Matter Pump disabled. Reaction Control System destroyed. U-05 Engineer builds a Wall. System corrupted: Matter fused (-10). Penetrated by Slug. Nuclear Pulse Thruster destroyed. Nuclear Pulse Array destroyed. Critical hit (Blast). Knocked back. VTOL Module destroyed. Acquired 7 matter. Map ----- +----------------------------------------------------+ | #????????????????????????????????????????????????? | | #????????????????????????????????????????????????? | | #????????????????????????????????????????????????? | | #????????????????????????????????????????????????? | | #????????????????????????????????????????????????? | | #????????????????????????????????????????????????? | | #????????????????????????????????????????????????? | | #????????????????????????????????????????????????? | | #????????????????????????????????????????????????? | | #????????????????????????????????????????????????? | | #?????????????????????? ????????????????????????? | | #???????????????????? ????????????????????????? | | #????????????????? ????????????????????????? | | #????????????????T ????????????????????????? | | #????????????????# ????????????????????????? | | #????????????????# #???????????????????????? | | #????????????????# #???????????????????????? | | #???????????????## ##??????????????????????? | | #???????????????#! #??????????????????????? | | #??????????##+### #??????????????????????? | | ####?????? #??????????????????????? | | AA #??????????????????????? | | #########? #??????????????????????? | | #####????? #??????????????????????? | | #????? #??????????????????????? | | #???????????# @#????####??????????????? | | #???????????# #????# ?????????????? | | """ #???????????### b ###????# ""?????????????? | | """ ??????????????# g #??????# ???????????? | | """???????#####???# H #??????# """"""""??#????? | | ????????# ???# #??????# #????? | | ???????? ??# #??????# """"""""" #????? | | ###????????? ?# #??????# #????? | | ???????????? ?# ######## """"""""" #????? | | ?????????????? #= % #= #????? | | ??????????????? # # """"""""" #????? | | ???????????? ! # """ """ % # #????? | | ??????????????????# """ """ + #????? | | ??????????????????# """ """ ##############????? | | ??????????????????# #?????????????????? | | ??????????????????# """ ""% #?????????????????? | | ??????????????????# """ "%% #?????????????????? | | ??????????????????# """ ""% #?????????????????? | | ??????????????????# #?????????????????> | | ??????????????????+ #?????????????????? | | ??????????????????# #?????????????????? | | ??????????????????#[[= "" ##?????????????????? | | ?????????????????##[== "" #??????????????????? | | ?????????????????# [= #??????????????????? | | ?????????????????# "" ###????????????????? | +----------------------------------------------------+ Best States ------------- Heat Dissipation 40 Energy Generation 31 Energy Capacity 370 Matter Stores 300 Matter Capacity 300 Sight Range 18 Robot Scan Range 16 Terrain Scan Range 16 Terrain Scan Density 10 Cloak Strength 2 Additional Mass Support 9 Evasion (%) 73 Offensive Hacking 22 Defensive Hacking 12 Relay Coupler Types 1 Relay Coupler Value 31 Item Schematics ----------------- None Robot Schematics ------------------ Y-64 Sentinel | -5/Factory | Hacked Fabricated ------------ Nothing Alien Tech Used ----------------- None Achievements -------------- Assimilation Complete Error 47 Challenges ------------ None Game ------ Seed CatalystRocketBiocell Manual? 0 Play Time 01:27:01 Cumulative 41.2 hours Start 2022.12.15 @ 11:07:09 End 2022.12.15 @ 15:11:52 Sessions 1 Manual Loads 0 Difficulty Rogue Special Mode None Game No. 61 Rogue 61 Adventurer 0 Explorer 0 Win Type - Total 1 Types 1/0/0/0/0/0/0/0/0 Lore% 29 Gallery% 37 Achievement% 31 Wizard Run 0 Options --------- ASCII 0 Keyboard 0 Movement Arrows Keybinds 0 Fullscreen 2 Font 16/SmallcapsGlow Map View 76x50 Tactical HUD 0 Map Filters NONE Filters NONE Steam 1 RUN: 5a43967c-232e-4aaa-b6bb-6239f7ad516c